[Event "29. Klatovy C 2023"]
[Site "Klatovy"]
[Date "2023.07.04"]
[Round "4.6"]
[White "Danko, Jiri"]
[Black "Havelka, Petr"]
[Result "1/2-1/2"]
[ECO "B01"]
[WhiteElo "1873"]
[BlackElo "1770"]
[PlyCount "64"]
[EventDate "2023.07.01"]
[EventType "swiss"]
[EventRounds "9"]
[EventCountry "CZE"]
[TimeControl "120+30"]

1. e4 {[%emt 0:00:00]} d5 {[%emt 0:00:45]} 2. exd5 {[%emt 0:00:00]} Nf6 {[%emt 0:00:26]} 3. d4 {[%emt 0:02:44]} Nxd5 {[%emt 0:01:22]} 4. Bc4 {[%emt 0:03:57]} e6 {[%emt 0:02:48]} 5. Nf3 {[%emt 0:01:03]} Be7 {[%emt 0:02:27]} 6. O-O {[%emt 0:01:54]} O-O {[%emt 0:00:42]} 7. a3 {[%emt 0:04:04]} b6 {[%emt 0:02:00]} 8. Bd3 {[%emt 0:03:30]} Nf6 {[%emt 0:05:17]} 9. Qe2 {[%emt 0:04:39]} Bb7 {[%emt 0:03:25]} 10. Rd1 {[%emt 0:00:41]} Nbd7 {[%emt 0:11:42]} 11. Nc3 {[%emt 0:15:30]} Re8 {[%emt 0:05:02]} 12. Ne5 {[%emt 0:02:51]} Qc8 {[%emt 0:06:48]} 13. Bg5 {[%emt 0:18:36]} c5 {[%emt 0:07:40]} 14. Bxf6 {[%emt 0:07:26]} Nxf6 {[%emt 0:03:29]} 15. dxc5 {[%emt 0:01:44]} Qxc5 {[%emt 0:03:13]} 16. Re1 {[%emt 0:04:37]} Bd6 {[%emt 0:04:11]} 17. h3 {[%emt 0:04:13]} Bxe5 {[%emt 0:12:07]} 18. Qxe5 {[%emt 0:00:27]} Qxe5 {[%emt 0:05:56]} 19. Rxe5 {[%emt 0:00:20]} Red8 {[%emt 0:00:32]} 20. Re2 {[%emt 0:06:44]} Nd5 {[%emt 0:04:51]} 21. Nxd5 {[%emt 0:00:06]} Bxd5 {[%emt 0:02:26]} 22. f3 {[%emt 0:03:21]} g6 {[%emt 0:01:38]} 23. Kf2 {[%emt 0:00:16]} Rac8 {[%emt 0:00:54]} 24. Ke3 {[%emt 0:01:47]} Bc4 {[%emt 0:03:03]} 25. Bxc4 {[%emt 0:04:02]} Rxc4 {[%emt 0:00:21]} 26. Rd2 {[%emt 0:00:48]} Rxd2 {[%emt 0:01:39]} 27. Kxd2 {[%emt 0:00:08]} Kf8 {[%emt 0:00:12]} 28. c3 {[%emt 0:00:59]} Ke7 {[%emt 0:00:25]} 29. Ke3 {[%emt 0:00:47]} h5 {[%emt 0:00:10]} 30. g3 {[%emt 0:01:05]} f6 {[%emt 0:00:33]} 31. Rd1 {[%emt 0:00:09]} Rc5 {[%emt 0:00:34]} 32. Rd4 {[%emt 0:01:37]} Re5+ {[%emt 0:05:03]} 1/2-1/2

[Event "29. Klatovy C 2023"]
[Site "Klatovy"]
[Date "2023.07.04"]
[Round "4.7"]
[White "Vachal, Josef"]
[Black "Petras, Milan"]
[Result "1/2-1/2"]
[ECO "E67"]
[WhiteElo "1762"]
[BlackElo "1866"]
[PlyCount "42"]
[EventDate "2023.07.01"]
[EventType "swiss"]
[EventRounds "9"]
[EventCountry "CZE"]
[TimeControl "120+30"]

1. d4 {[%emt 0:00:06]} g6 {[%emt 0:01:07]} 2. Nf3 {[%emt 0:00:17]} Bg7 {[%emt 0:00:03]} 3. c4 {[%emt 0:00:33]} d6 {[%emt 0:02:00]} 4. Nc3 {[%emt 0:01:15]} Nd7 {[%emt 0:01:28]} 5. g3 {[%emt 0:03:03]} Ngf6 {[%emt 0:06:01]} 6. Bg2 {[%emt 0:00:19]} O-O {[%emt 0:00:13]} 7. O-O {[%emt 0:00:11]} e5 {[%emt 0:01:10]} 8. Qc2 {[%emt 0:06:28]} exd4 {[%emt 0:05:15]} 9. Nxd4 {[%emt 0:00:12]} Re8 {[%emt 0:01:42]} 10. e3 {[%emt 0:03:47]} a5 {[%emt 0:06:50]} 11. b3 {[%emt 0:04:56]} Nc5 {[%emt 0:12:42]} 12. Bb2 {[%emt 0:02:09]} Ne6 {[%emt 0:15:34]} 13. Nxe6 {[%emt 0:17:09]} fxe6 {[%emt 0:04:00]} 14. Rad1 {[%emt 0:02:29]} Qe7 {[%emt 0:00:27]} 15. Rd2 {[%emt 0:13:26]} Rb8 {[%emt 0:00:43]} 16. e4 {[%emt 0:06:04]} Bh6 {[%emt 0:08:49]} 17. Re2 {[%emt 0:00:43]} e5 {[%emt 0:01:11]} 18. Bc1 {[%emt 0:03:25]} Bxc1 {[%emt 0:00:46]} 19. Qxc1 {[%emt 0:01:42]} Bd7 {[%emt 0:02:16]} 20. Rd1 {[%emt 0:05:39]} b6 {[%emt 0:11:09]} 21. Rc2 {[%emt 0:06:39]} Rbc8 {[%emt 0:03:52]} 1/2-1/2

[Event "29. Klatovy C 2023"]
[Site "Klatovy"]
[Date "2023.07.04"]
[Round "4.8"]
[White "Truksa, Vaclav"]
[Black "Sibl, Vaclav"]
[Result "1/2-1/2"]
[ECO "A41"]
[WhiteElo "1725"]
[BlackElo "1840"]
[PlyCount "55"]
[EventDate "2023.07.01"]
[EventType "swiss"]
[EventRounds "9"]
[EventCountry "CZE"]
[TimeControl "120+30"]

1. d4 {[%emt 0:00:06]} d6 {[%emt 0:00:37]} 2. c4 {[%emt 0:00:22]} e5 {[%emt 0:00:06]} 3. dxe5 {[%emt 0:00:24]} dxe5 {[%emt 0:00:12]} 4. Qxd8+ {[%emt 0:00:06]} Kxd8 {[%emt 0:00:00]} 5. e3 {[%emt 0:01:03]} c6 {[%emt 0:00:31]} 6. Bd3 {[%emt 0:00:25]} f6 {[%emt 0:00:48]} 7. Nc3 {[%emt 0:01:07]} Be6 {[%emt 0:00:21]} 8. a3 {[%emt 0:00:52]} a5 {[%emt 0:00:20]} 9. Nge2 {[%emt 0:00:51]} Nd7 {[%emt 0:00:37]} 10. O-O {[%emt 0:00:23]} Nc5 {[%emt 0:00:43]} 11. Rd1 {[%emt 0:00:34]} Kc7 {[%emt 0:00:14]} 12. Bc2 {[%emt 0:01:27]} Bxc4 {[%emt 0:00:35]} 13. Ng3 {[%emt 0:00:31]} Bb3 {[%emt 0:02:49]} 14. Bxb3 {[%emt 0:00:33]} Nxb3 {[%emt 0:00:02]} 15. Rb1 {[%emt 0:00:24]} Nh6 {[%emt 0:00:30]} 16. e4 {[%emt 0:00:40]} Nxc1 {[%emt 0:00:33]} 17. Rbxc1 {[%emt 0:00:23]} Be7 {[%emt 0:04:38]} 18. Nd5+ {[%emt 0:00:44]} Kd6 {[%emt 0:00:54]} 19. Nb6+ {[%emt 0:00:32]} Ke6 {[%emt 0:00:08]} 20. Nxa8 {[%emt 0:00:26]} Rxa8 {[%emt 0:00:00]} 21. Kf1 {[%emt 0:00:48]} g6 {[%emt 0:00:15]} 22. h3 {[%emt 0:00:28]} Nf7 {[%emt 0:00:17]} 23. f3 {[%emt 0:00:18]} Rd8 {[%emt 0:01:03]} 24. Ne2 {[%emt 0:01:26]} Rxd1+ {[%emt 0:00:23]} 25. Rxd1 {[%emt 0:00:10]} Nd6 {[%emt 0:00:23]} 26. Rc1 {[%emt 0:00:50]} Nb5 {[%emt 0:01:25]} 27. Rc4 {[%emt 0:01:56]} Nd6 {[%emt 0:01:16]} 28. Rc1 {[%emt 0:01:33]} 1/2-1/2

[Event "29. Klatovy C 2023"]
[Site "Klatovy"]
[Date "2023.07.05"]
[Round "5.1"]
[White "Turner, Radek"]
[Black "Chalus, Karel"]
[Result "1-0"]
[ECO "A21"]
[WhiteElo "1991"]
[BlackElo "1975"]
[PlyCount "77"]
[EventDate "2023.07.01"]
[EventType "swiss"]
[EventRounds "9"]
[EventCountry "CZE"]
[TimeControl "120+30"]

1. c4 {[%emt 0:03:34]} c6 {[%emt 0:00:09]} 2. g3 {[%emt 0:00:07]} d6 {[%emt 0:00:05]} 3. Bg2 {[%emt 0:00:09]} e5 {[%emt 0:00:12]} 4. Nc3 {[%emt 0:00:12]} f5 {[%emt 0:00:16]} 5. d4 {[%emt 0:00:37]} Nf6 {[%emt 0:07:18]} 6. Nh3 {[%emt 0:10:57]} Be7 {[%emt 0:03:55]} 7. e4 {[%emt 0:02:55]} exd4 {[%emt 0:05:41]} 8. Qxd4 {[%emt 0:00:37]} Qb6 {[%emt 0:01:15]} 9. Qd3 {[%emt 0:31:39]} Na6 {[%emt 0:25:15]} 10. exf5 {[%emt 0:22:58]} Nb4 {[%emt 0:14:29]} 11. Qe2 {[%emt 0:04:54]} Bxf5 {[%emt 0:00:59]} 12. Be3 {[%emt 0:02:38]} Qa6 {[%emt 0:06:45]} 13. O-O {[%emt 0:03:09]} Bd3 {[%emt 0:02:34]} 14. Qd2 {[%emt 0:00:18]} Qxc4 {[%emt 0:03:58]} 15. Rfc1 {[%emt 0:00:14]} Bf5 {[%emt 0:34:08]} 16. Nd5 {[%emt 0:03:48]} Qxc1+ {[%emt 0:00:18]} 17. Rxc1 {[%emt 0:00:40]} Nbxd5 {[%emt 0:00:08]} 18. Bxd5 {[%emt 0:04:21]} Nxd5 {[%emt 0:01:12]} 19. Nf4 {[%emt 0:02:50]} Nxe3 {[%emt 0:02:33]} 20. Qxe3 {[%emt 0:00:14]} Kd7 {[%emt 0:00:05]} 21. Qb3 {[%emt 0:00:14]} b6 {[%emt 0:01:17]} 22. Qc4 {[%emt 0:02:02]} Rac8 {[%emt 0:00:28]} 23. Qf7 {[%emt 0:02:03]} Rcf8 {[%emt 0:00:06]} 24. Qc4 {[%emt 0:04:58]} Rc8 {[%emt 0:00:24]} 25. Qa4 {[%emt 0:01:31]} Rc7 {[%emt 0:01:19]} 26. Nd5 {[%emt 0:02:01]} b5 {[%emt 0:00:21]} 27. Qa5 {[%emt 0:00:10]} Rhc8 {[%emt 0:00:17]} 28. Nxc7 {[%emt 0:00:44]} Rxc7 {[%emt 0:00:06]} 29. a4 {[%emt 0:00:36]} Bd3 {[%emt 0:01:26]} 30. Qc3 {[%emt 0:00:50]} Bc4 {[%emt 0:01:20]} 31. Qxg7 {[%emt 0:02:00]} a6 {[%emt 0:00:21]} 32. axb5 {[%emt 0:00:51]} axb5 {[%emt 0:00:14]} 33. Re1 {[%emt 0:01:16]} Kd8 {[%emt 0:00:16]} 34. Qh8+ {[%emt 0:00:49]} Kd7 {[%emt 0:00:09]} 35. Qxh7 {[%emt 0:00:22]} Kd8 {[%emt 0:00:07]} 36. Ra1 {[%emt 0:05:40]} d5 {[%emt 0:00:30]} 37. Qf5 {[%emt 0:01:13]} Rb7 {[%emt 0:00:27]} 38. Qe6 {[%emt 0:01:09]} Bc5 {[%emt 0:00:22]} 39. Qxc6 {[%emt 0:00:22]} 1-0

[Event "29. Klatovy C 2023"]
[Site "Klatovy"]
[Date "2023.07.05"]
[Round "5.2"]
[White "Pribyl, Josef"]
[Black "Fiser, Jiri2"]
[Result "1-0"]
[ECO "A01"]
[WhiteElo "2230"]
[BlackElo "1784"]
[PlyCount "75"]
[EventDate "2023.07.01"]
[EventType "swiss"]
[EventRounds "9"]
[EventCountry "CZE"]
[TimeControl "120+30"]

1. b3 {[%emt 0:00:00]} e5 {[%emt 0:01:44]} 2. Bb2 {[%emt 0:00:02]} Nc6 {[%emt 0:00:53]} 3. e3 {[%emt 0:00:02]} d6 {[%emt 0:01:30]} 4. c4 {[%emt 0:00:57]} g6 {[%emt 0:00:39]} 5. g3 {[%emt 0:03:16]} Bg7 {[%emt 0:00:24]} 6. Bg2 {[%emt 0:00:16]} Bd7 {[%emt 0:00:19]} 7. h4 {[%emt 0:00:33]} Nf6 {[%emt 0:04:39]} 8. Ne2 {[%emt 0:00:25]} O-O {[%emt 0:02:36]} 9. Nbc3 {[%emt 0:00:08]} Re8 {[%emt 0:01:32]} 10. d3 {[%emt 0:01:48]} h5 {[%emt 0:08:57]} 11. Qd2 {[%emt 0:00:25]} Qc8 {[%emt 0:09:34]} 12. a3 {[%emt 0:05:23]} a5 {[%emt 0:02:34]} 13. Rc1 {[%emt 0:05:29]} Bh6 {[%emt 0:07:39]} 14. Qc2 {[%emt 0:06:22]} Bg4 {[%emt 0:05:19]} 15. Ne4 {[%emt 0:08:00]} Nxe4 {[%emt 0:00:57]} 16. dxe4 {[%emt 0:00:02]} Bxe2 {[%emt 0:05:50]} 17. Qxe2 {[%emt 0:00:23]} b6 {[%emt 0:00:58]} 18. Bh3 {[%emt 0:02:06]} Qd8 {[%emt 0:00:02]} 19. Rd1 {[%emt 0:01:06]} Qe7 {[%emt 0:01:24]} 20. g4 {[%emt 0:12:16]} hxg4 {[%emt 0:02:35]} 21. Qxg4 {[%emt 0:01:25]} Rf8 {[%emt 0:00:37]} 22. h5 {[%emt 0:00:54]} g5 {[%emt 0:05:16]} 23. Qd7 {[%emt 0:07:27]} Qxd7 {[%emt 0:02:36]} 24. Bxd7 {[%emt 0:00:02]} Ne7 {[%emt 0:00:09]} 25. Ke2 {[%emt 0:00:33]} f5 {[%emt 0:02:51]} 26. exf5 {[%emt 0:01:25]} Nxf5 {[%emt 0:00:03]} 27. Rhg1 {[%emt 0:02:55]} Ng7 {[%emt 0:04:14]} 28. Bc6 {[%emt 0:01:46]} Rad8 {[%emt 0:00:18]} 29. b4 {[%emt 0:01:42]} axb4 {[%emt 0:00:24]} 30. axb4 {[%emt 0:00:03]} Kh8 {[%emt 0:07:35]} 31. Ra1 {[%emt 0:04:35]} Rf7 {[%emt 0:01:51]} 32. Ra7 {[%emt 0:03:27]} Rdf8 {[%emt 0:01:03]} 33. Rg2 {[%emt 0:00:57]} Nxh5 {[%emt 0:15:54]} 34. Bd5 {[%emt 0:01:20]} Rh7 {[%emt 0:04:48]} 35. Be4 {[%emt 0:04:56]} Rhf7 {[%emt 0:16:16]} 36. Bg6 {[%emt 0:00:07]} Nf4+ {[%emt 0:00:09]} 37. exf4 {[%emt 0:00:23]} gxf4 {[%emt 0:00:03]} 38. Bxf7 {[%emt 0:00:52]} 1-0

[Event "29. Klatovy C 2023"]
[Site "Klatovy"]
[Date "2023.07.05"]
[Round "5.4"]
[White "Sedlak, Ludek"]
[Black "Baumruk, Josef"]
[Result "1-0"]
[ECO "C02"]
[WhiteElo "1885"]
[BlackElo "1947"]
[PlyCount "115"]
[EventDate "2023.07.01"]
[EventType "swiss"]
[EventRounds "9"]
[EventCountry "CZE"]
[TimeControl "120+30"]

1. e4 {[%emt 0:00:02]} e6 {[%emt 0:00:06]} 2. d4 {[%emt 0:00:34]} d5 {[%emt 0:00:06]} 3. e5 {[%emt 0:00:05]} c5 {[%emt 0:00:06]} 4. c3 {[%emt 0:00:05]} Nc6 {[%emt 0:00:11]} 5. Nf3 {[%emt 0:00:19]} Bd7 {[%emt 0:00:41]} 6. a3 {[%emt 0:02:56]} c4 {[%emt 0:03:35]} 7. g3 {[%emt 0:22:02]} Na5 {[%emt 0:06:42]} 8. Nbd2 {[%emt 0:00:25]} Rc8 {[%emt 0:00:17]} 9. Bg2 {[%emt 0:01:02]} Be7 {[%emt 0:05:24]} 10. O-O {[%emt 0:00:20]} g5 {[%emt 0:01:47]} 11. h3 {[%emt 0:01:03]} h5 {[%emt 0:00:29]} 12. Nh2 {[%emt 0:01:51]} Bc6 {[%emt 0:18:31]} 13. f4 {[%emt 0:17:19]} gxf4 {[%emt 0:02:05]} 14. gxf4 {[%emt 0:00:58]} f5 {[%emt 0:09:58]} 15. exf6 {[%emt 0:04:46]} Nxf6 {[%emt 0:00:43]} 16. Re1 {[%emt 0:08:13]} Qd6 {[%emt 0:02:44]} 17. Ndf3 {[%emt 0:02:26]} Nb3 {[%emt 0:08:12]} 18. Rb1 {[%emt 0:00:36]} Nxc1 {[%emt 0:00:27]} 19. Qxc1 {[%emt 0:00:22]} Rg8 {[%emt 0:02:49]} 20. Ne5 {[%emt 0:03:18]} Rc7 {[%emt 0:08:35]} 21. Nhf3 {[%emt 0:05:01]} Bf8 {[%emt 0:01:27]} 22. Ng5 {[%emt 0:03:04]} Ne4 {[%emt 0:18:52]} 23. h4 {[%emt 0:00:36]} Bh6 {[%emt 0:02:48]} 24. Bf3 {[%emt 0:02:24]} Nxg5 {[%emt 0:02:10]} 25. fxg5 {[%emt 0:15:50]} Bxg5 {[%emt 0:05:29]} 26. Bxh5+ {[%emt 0:01:24]} Kd8 {[%emt 0:01:26]} 27. hxg5 {[%emt 0:00:37]} Rh7 {[%emt 0:10:47]} 28. Qf4 {[%emt 0:27:53]} Kc7 {[%emt 0:02:04]} 29. Rf1 {[%emt 0:00:24]} Bd7 {[%emt 0:06:10]} 30. Be2 {[%emt 0:02:46]} Rgh8 {[%emt 0:00:37]} 31. Ng6 {[%emt 0:02:12]} Rh1+ {[%emt 0:01:08]} 32. Kf2 {[%emt 0:00:17]} e5 {[%emt 0:04:53]} 33. Qxe5 {[%emt 0:00:14]} R1h2+ {[%emt 0:00:20]} 34. Kf3 {[%emt 0:02:19]} R8h3+ {[%emt 0:00:47]} 35. Kf4 {[%emt 0:00:31]} Rxe2 {[%emt 0:00:46]} 36. Qxd6+ {[%emt 0:00:26]} Kxd6 {[%emt 0:00:10]} 37. Rbe1 {[%emt 0:00:47]} Rxb2 {[%emt 0:00:46]} 38. Re3 {[%emt 0:00:49]} Rxe3 {[%emt 0:01:47]} 39. Kxe3 {[%emt 0:00:01]} Rc2 {[%emt 0:00:10]} 40. Ne5 {[%emt 0:00:19]} Rxc3+ {[%emt 0:00:22]} 41. Kf4 {[%emt 0:00:04]} Be6 {[%emt 0:00:40]} 42. g6 {[%emt 0:00:14]} Rxa3 {[%emt 0:00:19]} 43. Re1 {[%emt 0:00:44]} b5 {[%emt 0:00:43]} 44. Nf7+ {[%emt 0:00:35]} Kd7 {[%emt 0:00:40]} 45. Ne5+ {[%emt 0:00:11]} Ke7 {[%emt 0:00:29]} 46. Nf3 {[%emt 0:01:56]} Kf6 {[%emt 0:00:45]} 47. Ng5 {[%emt 0:00:22]} Bf5 {[%emt 0:00:19]} 48. g7 {[%emt 0:00:15]} Kxg7 {[%emt 0:00:42]} 49. Kxf5 {[%emt 0:00:02]} c3 {[%emt 0:00:36]} 50. Re7+ {[%emt 0:00:11]} Kf8 {[%emt 0:00:18]} 51. Kf6 {[%emt 0:01:30]} Ra6+ {[%emt 0:01:55]} 52. Ne6+ {[%emt 0:00:10]} Rxe6+ {[%emt 0:01:13]} 53. Rxe6 {[%emt 0:01:30]} b4 {[%emt 0:00:04]} 54. Rc6 {[%emt 0:01:08]} Ke8 {[%emt 0:00:03]} 55. Ke6 {[%emt 0:00:13]} Kd8 {[%emt 0:00:05]} 56. Kxd5 {[%emt 0:00:12]} a5 {[%emt 0:00:09]} 57. Kc4 {[%emt 0:00:24]} Kd7 {[%emt 0:00:08]} 58. Rc5 {[%emt 0:00:00]} 1-0

[Event "29. Klatovy C 2023"]
[Site "Klatovy"]
[Date "2023.07.05"]
[Round "5.5"]
[White "Plasek, Zdenek"]
[Black "Macho, Miloslav"]
[Result "1/2-1/2"]
[ECO "E18"]
[WhiteElo "1914"]
[BlackElo "1705"]
[PlyCount "76"]
[EventDate "2023.07.01"]
[EventType "swiss"]
[EventRounds "9"]
[EventCountry "CZE"]
[TimeControl "120+30"]

1. d4 {[%emt 0:09:26]} Nf6 {[%emt 0:00:28]} 2. c4 {[%emt 0:00:27]} e6 {[%emt 0:00:13]} 3. Nf3 {[%emt 0:00:20]} b6 {[%emt 0:00:10]} 4. g3 {[%emt 0:00:21]} Bb7 {[%emt 0:00:10]} 5. Bg2 {[%emt 0:00:03]} Bb4+ {[%emt 0:01:48]} 6. Bd2 {[%emt 0:00:11]} Be7 {[%emt 0:01:22]} 7. O-O {[%emt 0:00:24]} O-O {[%emt 0:00:50]} 8. Nc3 {[%emt 0:01:31]} Ne4 {[%emt 0:08:19]} 9. Ne1 {[%emt 0:11:15]} Nxc3 {[%emt 0:01:03]} 10. Bxc3 {[%emt 0:00:11]} Bxg2 {[%emt 0:00:08]} 11. Nxg2 {[%emt 0:00:02]} d6 {[%emt 0:08:41]} 12. d5 {[%emt 0:00:54]} e5 {[%emt 0:02:10]} 13. e4 {[%emt 0:00:27]} Nd7 {[%emt 0:00:50]} 14. Qe2 {[%emt 0:01:28]} Bg5 {[%emt 0:05:21]} 15. f4 {[%emt 0:02:42]} Bf6 {[%emt 0:03:20]} 16. f5 {[%emt 0:04:48]} a5 {[%emt 0:00:58]} 17. Be1 {[%emt 0:01:06]} Nc5 {[%emt 0:04:26]} 18. Bf2 {[%emt 0:02:06]} Nd7 {[%emt 0:00:40]} 19. h4 {[%emt 0:01:03]} Nc5 {[%emt 0:05:13]} 20. Rac1 {[%emt 0:07:54]} Be7 {[%emt 0:03:37]} 21. Rc3 {[%emt 0:00:40]} f6 {[%emt 0:02:25]} 22. g4 {[%emt 0:01:49]} Qe8 {[%emt 0:03:35]} 23. Rg3 {[%emt 0:00:39]} Rb8 {[%emt 0:03:27]} 24. g5 {[%emt 0:12:31]} b5 {[%emt 0:03:13]} 25. Bxc5 {[%emt 0:05:09]} dxc5 {[%emt 0:00:02]} 26. b3 {[%emt 0:00:25]} bxc4 {[%emt 0:00:23]} 27. bxc4 {[%emt 0:01:28]} Qa4 {[%emt 0:03:25]} 28. Rc1 {[%emt 0:03:57]} Rb4 {[%emt 0:01:33]} 29. Rc2 {[%emt 0:03:59]} Rb1+ {[%emt 0:04:30]} 30. Kf2 {[%emt 0:04:27]} Rfb8 {[%emt 0:03:28]} 31. Kf3 {[%emt 0:01:32]} Rh1 {[%emt 0:08:43]} 32. Kg4 {[%emt 0:00:35]} fxg5 {[%emt 0:06:43]} 33. hxg5 {[%emt 0:00:47]} Qe8 {[%emt 0:02:28]} 34. Kf3 {[%emt 0:01:24]} Rbb1 {[%emt 0:04:54]} 35. Kf2 {[%emt 0:02:09]} Qa4 {[%emt 0:04:33]} 36. Ne3 {[%emt 0:03:13]} Rh2+ {[%emt 0:00:56]} 37. Ng2 {[%emt 0:01:32]} Rhh1 {[%emt 0:02:57]} 38. Ne3 {[%emt 0:00:57]} Rh2+ {[%emt 0:06:56]} 1/2-1/2

[Event "29. Klatovy C 2023"]
[Site "Klatovy"]
[Date "2023.07.05"]
[Round "5.6"]
[White "Skopec, Lubos"]
[Black "Danko, Jiri"]
[Result "1-0"]
[ECO "C44"]
[WhiteElo "1824"]
[BlackElo "1873"]
[PlyCount "79"]
[EventDate "2023.07.01"]
[EventType "swiss"]
[EventRounds "9"]
[EventCountry "CZE"]
[TimeControl "120+30"]

1. e4 {[%emt 0:00:02]} e5 {[%emt 0:00:07]} 2. Nf3 {[%emt 0:00:06]} Nc6 {[%emt 0:00:25]} 3. c3 {[%emt 0:00:43]} d5 {[%emt 0:00:38]} 4. Bb5 {[%emt 0:00:30]} dxe4 {[%emt 0:01:49]} 5. Nxe5 {[%emt 0:00:18]} Qg5 {[%emt 0:03:28]} 6. d4 {[%emt 0:04:22]} Qxg2 {[%emt 0:01:58]} 7. Rf1 {[%emt 0:01:00]} Bh3 {[%emt 0:05:54]} 8. Qb3 {[%emt 0:03:45]} O-O-O {[%emt 0:37:57]} 9. Nxf7 {[%emt 0:10:49]} Bd6 {[%emt 0:39:10]} 10. Nxh8 {[%emt 0:17:19]} Qxh2 {[%emt 0:06:35]} 11. Nf7 {[%emt 0:12:17]} Rf8 {[%emt 0:00:54]} 12. Nxd6+ {[%emt 0:08:41]} cxd6 {[%emt 0:00:13]} 13. Be3 {[%emt 0:00:23]} Bxf1 {[%emt 0:12:28]} 14. Bxf1 {[%emt 0:00:29]} Qh4 {[%emt 0:01:28]} 15. Nd2 {[%emt 0:04:13]} Qg4 {[%emt 0:00:19]} 16. Be2 {[%emt 0:01:22]} Qf5 {[%emt 0:00:32]} 17. O-O-O {[%emt 0:02:29]} Nf6 {[%emt 0:00:43]} 18. Rg1 {[%emt 0:01:49]} g6 {[%emt 0:03:19]} 19. Rg5 {[%emt 0:03:13]} Qd7 {[%emt 0:00:35]} 20. Rg3 {[%emt 0:08:52]} Kc7 {[%emt 0:01:12]} 21. Nf1 {[%emt 0:06:07]} d5 {[%emt 0:02:30]} 22. Nh2 {[%emt 0:05:09]} Qe6 {[%emt 0:02:19]} 23. Ng4 {[%emt 0:01:15]} Nh5 {[%emt 0:00:23]} 24. Rg2 {[%emt 0:08:39]} Nf4 {[%emt 0:00:38]} 25. Bxf4+ {[%emt 0:00:14]} Rxf4 {[%emt 0:00:12]} 26. Qd1 {[%emt 0:01:55]} h5 {[%emt 0:01:19]} 27. Ne3 {[%emt 0:00:59]} Ne7 {[%emt 0:00:34]} 28. Qg1 {[%emt 0:02:32]} Qf7 {[%emt 0:00:59]} 29. Kd2 {[%emt 0:04:12]} a6 {[%emt 0:00:32]} 30. Ke1 {[%emt 0:02:11]} Kc6 {[%emt 0:01:00]} 31. Rg3 {[%emt 0:03:01]} Rf6 {[%emt 0:00:24]} 32. Qg2 {[%emt 0:02:31]} Rf4 {[%emt 0:00:23]} 33. Bd1 {[%emt 0:04:48]} b5 {[%emt 0:00:59]} 34. Rg5 {[%emt 0:00:43]} Qf6 {[%emt 0:01:19]} 35. Re5 {[%emt 0:02:55]} Qh4 {[%emt 0:00:59]} 36. Bb3 {[%emt 0:01:09]} a5 {[%emt 0:01:32]} 37. Bxd5+ {[%emt 0:00:07]} Kd6 {[%emt 0:00:36]} 38. Ba8 {[%emt 0:03:37]} Rf3 {[%emt 0:00:30]} 39. Rxe4 {[%emt 0:00:42]} Rf4 {[%emt 0:00:10]} 40. Rxf4 {[%emt 0:00:38]} 1-0

[Event "29. Klatovy C 2023"]
[Site "Klatovy"]
[Date "2023.07.05"]
[Round "5.3"]
[White "Novotny, Jaroslav2"]
[Black "Korsa, Jindrich"]
[Result "1-0"]
[ECO "B01"]
[WhiteElo "1890"]
[BlackElo "1997"]
[PlyCount "119"]
[EventDate "2023.07.01"]
[EventType "swiss"]
[EventRounds "9"]
[EventCountry "CZE"]
[TimeControl "120+30"]

1. e4 {[%emt 0:00:05]} d5 {[%emt 0:00:15]} 2. exd5 {[%emt 0:00:08]} Qxd5 {[%emt 0:00:00]} 3. Nc3 {[%emt 0:00:15]} Qd8 {[%emt 0:00:06]} 4. Nf3 {[%emt 0:01:10]} Nf6 {[%emt 0:00:11]} 5. Bc4 {[%emt 0:02:30]} Bf5 {[%emt 0:00:18]} 6. d3 {[%emt 0:00:38]} e6 {[%emt 0:00:18]} 7. h3 {[%emt 0:01:49]} Nbd7 {[%emt 0:02:12]} 8. a3 {[%emt 0:00:29]} c6 {[%emt 0:00:19]} 9. Qe2 {[%emt 0:06:01]} Be7 {[%emt 0:02:17]} 10. Nh4 {[%emt 0:04:02]} Bg6 {[%emt 0:02:24]} 11. Nxg6 {[%emt 0:01:57]} hxg6 {[%emt 0:00:07]} 12. Bf4 {[%emt 0:02:31]} Nb6 {[%emt 0:04:20]} 13. Ba2 {[%emt 0:01:30]} Nbd5 {[%emt 0:00:12]} 14. Nxd5 {[%emt 0:03:31]} cxd5 {[%emt 0:01:09]} 15. O-O {[%emt 0:04:27]} O-O {[%emt 0:03:23]} 16. d4 {[%emt 0:03:19]} Bd6 {[%emt 0:02:31]} 17. Bxd6 {[%emt 0:01:49]} Qxd6 {[%emt 0:00:00]} 18. c3 {[%emt 0:00:54]} Qf4 {[%emt 0:04:42]} 19. Rae1 {[%emt 0:02:47]} Ne4 {[%emt 0:00:46]} 20. Rd1 {[%emt 0:04:08]} Rac8 {[%emt 0:01:48]} 21. Bb1 {[%emt 0:02:04]} Nd6 {[%emt 0:00:27]} 22. Bd3 {[%emt 0:02:21]} Rc7 {[%emt 0:04:20]} 23. Rfe1 {[%emt 0:05:37]} Rb8 {[%emt 0:01:12]} 24. Qe5 {[%emt 0:01:42]} Qxe5 {[%emt 0:00:11]} 25. dxe5 {[%emt 0:01:35]} Nc4 {[%emt 0:01:39]} 26. Bxc4 {[%emt 0:01:43]} Rxc4 {[%emt 0:00:07]} 27. f3 {[%emt 0:04:48]} Kf8 {[%emt 0:02:13]} 28. Kf2 {[%emt 0:00:20]} Ke7 {[%emt 0:00:09]} 29. Rd3 {[%emt 0:02:16]} Rbc8 {[%emt 0:00:38]} 30. Red1 {[%emt 0:00:30]} Kd7 {[%emt 0:04:26]} 31. Rd4 {[%emt 0:00:44]} b5 {[%emt 0:06:54]} 32. Ke3 {[%emt 0:00:22]} Kc6 {[%emt 0:05:04]} 33. Rxc4+ {[%emt 0:02:01]} bxc4 {[%emt 0:00:02]} 34. Kd2 {[%emt 0:00:37]} Rh8 {[%emt 0:01:19]} 35. Kc2 {[%emt 0:00:44]} Rh5 {[%emt 0:00:58]} 36. Re1 {[%emt 0:00:41]} Kc5 {[%emt 0:00:42]} 37. Kd2 {[%emt 0:08:28]} Rh4 {[%emt 0:07:17]} 38. Re2 {[%emt 0:06:45]} a5 {[%emt 0:04:31]} 39. Kc2 {[%emt 0:04:57]} a4 {[%emt 0:01:02]} 40. Kd2 {[%emt 0:00:07]} Rh5 {[%emt 0:11:05]} 41. Kc2 {[%emt 0:01:15]} Rf5 {[%emt 0:00:22]} 42. Kd2 {[%emt 0:00:44]} d4 {[%emt 0:04:23]} 43. cxd4+ {[%emt 0:00:56]} Kxd4 {[%emt 0:01:24]} 44. Re4+ {[%emt 0:00:09]} Kd5 {[%emt 0:01:42]} 45. Kc3 {[%emt 0:00:11]} g5 {[%emt 0:00:59]} 46. Rd4+ {[%emt 0:01:00]} Kxe5 {[%emt 0:00:08]} 47. Rxc4 {[%emt 0:02:27]} Kf6 {[%emt 0:01:48]} 48. Rxa4 {[%emt 0:00:37]} Re5 {[%emt 0:00:26]} 49. Rd4 {[%emt 0:01:26]} Re2 {[%emt 0:02:11]} 50. Rd2 {[%emt 0:00:13]} Re1 {[%emt 0:00:06]} 51. b4 {[%emt 0:00:46]} Re3+ {[%emt 0:00:16]} 52. Kb2 {[%emt 0:00:44]} Ke5 {[%emt 0:00:07]} 53. a4 {[%emt 0:00:32]} Kf4 {[%emt 0:00:12]} 54. b5 {[%emt 0:00:57]} Re5 {[%emt 0:00:50]} 55. Kb3 {[%emt 0:00:31]} Ke3 {[%emt 0:00:17]} 56. Rc2 {[%emt 0:00:24]} Kd3 {[%emt 0:00:22]} 57. Rc7 {[%emt 0:01:16]} Re2 {[%emt 0:00:36]} 58. Rc3+ {[%emt 0:02:12]} Kd4 {[%emt 0:00:06]} 59. Rc2 {[%emt 0:00:16]} Re1 {[%emt 0:00:17]} 60. Kb4 {[%emt 0:00:19]} 1-0